Cogmind - Beta 11 @@@ ROGUE MODE // 2022.04.14 @ 23:51:59 Player: Rainynight Result: Destroyed by as-34384 with Assembled Heavy Rifle Performance ------------- Evolutions (1) 500 Regions Visited (3) 600 Robots Destroyed (0) 0 Value Destroyed (0) 0 Prototype IDs (0) 0 Alien Tech Used (0) 0 Bonus (200) 200 TOTAL SCORE: 1300 Bonus ------- Pacifist 200 Cogmind --------- Core Integrity 0/400 Matter 300/300 Energy 99/100 System Corruption 12% Temperature Cool (0) Movement Core (150) Ox2 Location -9/Mines Parts ------- > --- POWER (1) -------- (None) > --- PROPULSION (4) --- (None) > --- UTILITY (2) ------ Small Storage Unit > --- WEAPON (2) ------- Mace > --- INVENTORY (8) ---- Light Ion Engine Medium Storage Unit Large Matter Pod (150) High-capacity Matter Pod (177) Terrain Scanner Terrain Scan Processor Mace Mace Peak State ------------ > --- POWER ------------ (None) > --- PROPULSION ------- Wheel Wheel > --- UTILITY ---------- Small Storage Unit Visual Processing Unit > --- WEAPON ----------- Particle Gun Mace > --- INVENTORY -------- Light Ion Engine Medium Storage Unit Large Matter Pod High-capacity Matter Pod Mace Mace Mace [Rating: 10] Favorites ----------- Power Ion Engine Engine Ion Engine Propulsion Wheel Leg Aluminum Leg Wheel Wheel Flight Unit Flight Unit Utility Small Storage Unit Storage Small Storage Unit Processor Visual Processing Unit Weapon Mace Energy Gun Particle Gun Ballistic Gun Light Assault Rifle Impact Weapon Mace Build | -11 -10 -9 -9 ------- Run | Scr Mat Mat Min Slots Evolved 2 | . . 2 . Power . | . . . . Propulsion 2 | . . 2 . Utility . | . . . . Weapon . | . . . . Parts Attached 19 | . 2 5 12 Power 1 | . . . 1 Engine 1 | . . . 1 Core . | . . . . Reactor . | . . . . Propulsion 14 | . 2 4 8 Treads . | . . . . Leg . | . . . . Wheel 11 | . 2 1 8 Hover . | . . . . Flight 3 | . . 3 . Utility 1 | . . . 1 Device . | . . . . Storage . | . . . . Processor 1 | . . . 1 Hackware . | . . . . Protection . | . . . . Artifact . | . . . . Weapon 3 | . . 1 2 Energy Gun 1 | . . . 1 Energy Cannon . | . . . . Ballistic Gun . | . . . . Ballistic Cannon . | . . . . Launcher . | . . . . Special Weapon . | . . . . Impact Weapon 2 | . . 1 1 Slashing Weapon . | . . . . Piercing Weapon . | . . . . Special Melee Weapon . | . . . . Unidentified Prototypes . | . . . . Parts Lost 17 | . 1 4 12 Power 2 | . . 1 1 Propulsion 11 | . . 3 8 Utility 1 | . . . 1 Weapon 3 | . 1 . 2 Highest Loss Streak 10 | . 1 4 10 To Critical Strikes . | . . . . Average Slot Usage (%) 61 | . 78 61 55 Engine 4 | . 14 8 1 Leg 1 | . 6 . . Wheel 16 | . 21 . 17 Flight 3 | . . 30 . Storage 11 | . 14 11 11 Processor 3 | . . . 5 Energy Gun 6 | . 7 . 7 Ballistic Gun 2 | . 14 . . Impact Weapon 9 | . . 11 12 Naked Turns . | . . . . Heaviest Build 13 | 13 13 12 12 Greatest Support 36 | 20 20 12 36 Greatest Overweight (x) 2 | . . 2 2 Average Overweight (x) . | . . . . Largest Inventory Capacity 8 | . 8 8 8 Average Capacity 8 | . 8 8 8 Most Carried 8 | . 8 8 8 Average Carried 7 | . 6 6 7 Final Capacity 8 | 8 8 8 8 Final Carried 8 | 6 8 7 8 Class Distribution -------------------- 100% | Mutant Dominant Class ---------------- Mutant | -10/Materials Mutant | -9/Materials Mutant | -9/Mines Resources | -11 -10 -9 -9 ----------- Run | Scr Mat Mat Min Matter Collected 642 | 171 . 84 387 Remotely . | . . . . Salvage Created . | . . . . Parts . | . . . . Haulers Intercepted . | . . . . Recyclers Shooed . | . . . . Parts Field Recycled . | . . . . Retrieved Matter . | . . . . Parts Self-Destructed . | . . . . Prevented . | . . . . Kills | -11 -10 -9 -9 ------- Run | Scr Mat Mat Min Combat Hostiles Destroyed . | . . . . Classes Destroyed . | . . . . Best Kill Streak . | . . . . Combat Bots Only . | . . . . Max Kills in Single Turn . | . . . . Gunslinging . | . . . . Exploded . | . . . . Melee . | . . . . Uniques/NPCs Destroyed . | . . . . Combat | -11 -10 -9 -9 -------- Run | Scr Mat Mat Min Damage Taken 1388 | . 227 204 957 Core 441 | . 26 94 321 Absorbed by Shields . | . . . . Core Remaining (%) 94 | 100 89 . . Volleys Fired 1 | . . . 1 Largest 1 | . . . 1 Hottest 65 | . . . 65 Shots Fired 1 | . . . 1 Gun 1 | . . . 1 Cannon . | . . . . Launcher . | . . . . Special . | . . . . Kinetic . | . . . . Thermal 1 | . . . 1 Explosive . | . . . . Electromagnetic . | . . . . Robot Hit Streak . | . . . . Robot Miss Streak . | . . . . Penetration Max . | . . . . Secondary Targets . | . . . . Shots Hit Robots . | . . . . Core Hits . | . . . . Critical Kills . | . . . . Critical Parts Destroyed . | . . . . Critical Strikes . | . . . . Melee Attacks 7 | . . . 7 Impact 7 | . . . 7 Slashing . | . . . . Piercing . | . . . . Sneak Attacks . | . . . . Combat Hostiles . | . . . . Follow-up Attacks . | . . . . Damage Inflicted . | . . . . Guns . | . . . . Cannons . | . . . . Explosions . | . . . . Melee . | . . . . Ramming . | . . . . Kinetic . | . . . . Thermal . | . . . . Explosive . | . . . . Electromagnetic . | . . . . Impact . | . . . . Slashing . | . . . . Piercing . | . . . . Highest Corruption 12 | . . . 12 Average Corruption 3 | . . . 3 Corruption Purged . | . . . . Corruption Blocked . | . . . . Effects 1 | . . . 1 Message Errors 1 | . . . 1 Overload Shots . | . . . . Overflow Damage . | . . . . Projectiles . | . . . . Explosions . | . . . . Melee . | . . . . Knockbacks . | . . . . Impact . | . . . . Kinetic . | . . . . Secondary . | . . . . Self-Inflicted Damage . | . . . . Shots . | . . . . Rammed . | . . . . Targets Rammed . | . . . . Kicked . | . . . . Crushed . | . . . . Highest Temperature 8 | . . 4 8 Average Temperature 5 | . . 4 6 Received Heat Transfer 437 | . 129 48 260 Siege Activations . | . . . . Robots Corrupted . | . . . . Combat Hostiles . | . . . . Parts Fried . | . . . . Impact Corruptions . | . . . . Robots Melted . | . . . . Combat Hostiles . | . . . . Parts Melted . | . . . . Heat Transferred . | . . . . Parts Sabotaged . | . . . . Parts Stolen . | . . . . Parts Stripped . | . . . . Power Chain Reactions . | . . . . Missiles Intercepted . | . . . . Alert | -11 -10 -9 -9 ------- Run | Scr Mat Mat Min Peak Influence 15 | . . 8 15 Initial . | . . . . Average 1 | . . 1 1 Maximum Alert Level . | . . . . Low Security (%) 100 | . 100 100 100 Level 1 . | . . . . Level 2 . | . . . . Level 3 . | . . . . Level 4 . | . . . . Level 5 . | . . . . High Security . | . . . . Max Security . | . . . . Squads Dispatched 1 | . . 1 . Investigation . | . . . . Extermination . | . . . . Reinforcement 1 | . . 1 . Assault . | . . . . Garrison . | . . . . Intercept . | . . . . Searches Triggered . | . . . . Construction Impeded . | . . . . Haulers Reinforced . | . . . . Active Scanning Responses . | . . . . Cargo Convoy Interrupts . | . . . . Stealth | -11 -10 -9 -9 --------- Run | Scr Mat Mat Min Distress Signals 2 | . . 2 . Communications Jammed . | . . . . Distress Signals . | . . . . Times Spotted 24 | . 3 12 9 Peak Tracking Total 13 | . 3 13 5 Tactical Retreats 3 | . . . 3 Traps | -11 -10 -9 -9 ------- Run | Scr Mat Mat Min Traps Triggered 1 | . . 1 . Indirectly . | . . . . Trap Hack Attempts . | . . . . Triggered . | . . . . Disarmed . | . . . . Reprogrammed . | . . . . Reused . | . . . . Traps Extracted . | . . . . Installed . | . . . . Triggered . | . . . . Machines | -11 -10 -9 -9 ---------- Run | Scr Mat Mat Min Machines Disabled . | . . . . Max in Single Turn . | . . . . Machines Sabotaged . | . . . . Garrisons Compromised . | . . . . Overloaded Fab Kills . | . . . . Hacking | -11 -10 -9 -9 --------- Run | Scr Mat Mat Min Machines Accessed 1 | . . 1 . Terminals 1 | . . 1 . Fabricators . | . . . . Repair Stations . | . . . . Recycling Units . | . . . . Scanalyzers . | . . . . Garrison Access . | . . . . Total Hacks 1 | . . 1 . Successful 1 | . . 1 . Failed . | . . . . Catastrophic . | . . . . Database Lockouts . | . . . . Manual 1 | . . 1 . Terminals 1 | . . 1 . Fabricators . | . . . . Repair Stations . | . . . . Recycling Units . | . . . . Scanalyzers . | . . . . Garrison Access . | . . . . Terminal Hacks 1 | . . 1 . Branch Access Points 1 | . . 1 . Fabricator Hacks . | . . . . Repair Station Hacks . | . . . . Recycling Unit Hacks . | . . . . Scanalyzer . | . . . . Garrison Access Hacks . | . . . . Unauthorized Hacks . | . . . . Terminals . | . . . . Fabricators . | . . . . Repair Stations . | . . . . Recycling Units . | . . . . Scanalyzers . | . . . . Garrison Access . | . . . . Data Cores Recovered . | . . . . Used . | . . . . Hacking Detections . | . . . . Full Trace Events . | . . . . Feedback Events . | . . . . Feedback Blocked . | . . . . Robot Schematics Acquired . | . . . . Robots Built . | . . . . Authchips . | . . . . Time . | . . . . Total Robot Build Rating . | . . . . Part Schematics Acquired . | . . . . Parts Built . | . . . . Authchips . | . . . . Time . | . . . . Total Part Build Rating . | . . . . Parts Repaired . | . . . . Time . | . . . . Parts Recycled . | . . . . Recycled Matter . | . . . . Retrieved Matter . | . . . . Retrieved Components . | . . . . Parts Scanalyzed . | . . . . Part Schematics Acquired . | . . . . Parts Damaged . | . . . . Bothacking | -11 -10 -9 -9 ------------ Run | Scr Mat Mat Min Used RIF Installer . | . . . . Robots Hacked . | . . . . Non-combat . | . . . . Combat . | . . . . Robot Hacks Applied . | . . . . Relay Couplers Released . | . . . . Fabnet Peak Effective % . | . . . . Robots Rewired . | . . . . Allies Hacked . | . . . . Hacks Repelled . | . . . . Allies | -11 -10 -9 -9 -------- Run | Scr Mat Mat Min Total Allies 2 | . . . 2 Largest Group 2 | . . . 2 Highest-Rated Group 46 | . . . 46 Highest-Rated Ally 31 | . . . 31 Total Orders . | . . . . Ally Attacks 14 | . . . 14 Total Damage 167 | . . . 167 Kills 3 | . . . 3 Allies Corrupted . | . . . . Allies Melted . | . . . . Intel | -11 -10 -9 -9 ------- Run | Scr Mat Mat Min Robot Analysis Total . | . . . . Derelict Logs Recovered . | . . . . Drone Launches . | . . . . Drone Recoveries . | . . . . Exploration | -11 -10 -9 -9 ------------- Run | Scr Mat Mat Min Turns Passed 429 | . 90 55 284 Spaces Moved 494 | 1 89 128 276 Core 8 | . . 2 6 Treads . | . . . . Legs 17 | 1 16 . . Wheels 343 | . 73 . 270 Hover . | . . . . Flight 126 | . . 126 . Fastest Speed 34 | 120 80 34 80 Average Speed 71 | 120 87 37 82 Slowest Speed 150 | 120 120 150 150 Overloaded Moves . | . . . . Propulsion Burnouts . | . . . . Robots Hopped 5 | . . 5 . Cave-ins Triggered 1 | . . . 1 Exploration Rate (%) 25 | 2 24 24 52 Regions Visited 3 Branch Regions 1 Pre-discovered Areas . | . . . . Known Exits Taken 1 | . . 1 . Unknown Exits Taken 2 | 1 1 . . Scrap Searched 2 | . . . 2 Spaces Dug 5 | . . . 5 Terrain Destroyed 5 | . . . 5 Melee 5 | . . . 5 Projectile . | . . . . AOE . | . . . . Terrain Rammed . | . . . . Walls Destroyed . | . . . . Machines Disabled . | . . . . Actions | -11 -10 -9 -9 --------- Run | Scr Mat Mat Min Total 546 | . 102 130 314 Wait 14 | . . . 14 Move 481 | . 88 118 275 Hop 4 | . . 4 . Pick Up 12 | . 7 1 4 Fast Attach 9 | . . . 9 Attach 6 | . . 3 3 Detach 1 | . . 1 . Swap 4 | . 2 2 . Drop 6 | . 5 1 . Fire 1 | . . . 1 Melee 7 | . . . 7 Ram . | . . . . Kick . | . . . . Crush . | . . . . Escape Stasis 1 | . . . 1 Rewire . | . . . . Trap . | . . . . Miscellaneous . | . . . . Route ------- -11/Scrapyard -10/Materials -9/Materials -9/Mines History --------- Turn | Location | Event 1 | -11/Scrapyard | Discovered new exit (range 0) 1 | -11/Scrapyard | Entered Materials 86 | -10/Materials | Discovered new exit (range 4) 91 | -10/Materials | Entered another Materials area 91 | -9/Materials | Evolved 2 slots: Propulsion x2 128 | -9/Materials | Identified exit to Mines 146 | -9/Materials | Entered Mines 147 | -9/Mines | Assembled infested the area 174 | -9/Mines | Lost 4 parts (1p3n) 300 | -9/Mines | Build established: Mutant 318 | -9/Mines | Crushed by falling debris 364 | -9/Mines | Core integrity fell below 50% 398 | -9/Mines | Core integrity fell below 20% 407 | -9/Mines | System corruption reached 10% 428 | -9/Mines | Received a Rocket Launcher from a helpful Derelict 430 | -9/Mines | Destroyed by as-34384 with Assembled Heavy Rifle Last Messages --------------- 00406_ Com. Wheel destroyed. 00406_ System corrupted by crushing effect (+4). 00410_ WI%MFBYCSX8#V/OSA8IMZAA59J, 00416_ Lgt. Ion Engine destroyed. 00419_ Knocked back. 00420_ Mace destroyed. 00422_ A derelict emerges from the shadows. 00423_ SL-BRD(g): "Some of my friends down here think you need a mining laser when you travel the depths." 00423_ Wheel destroyed. 00424_ SL-BRD(g): "You know what I say? NO!" 00425_ SL-BRD(g): "Everyone knows a good old rocket launcher goes a long way." 00426_ SL-BRD(g): "Need to get rid of a swarm? Done. Need a big hole in the wall? Done." 00427_ SL-BRD(g): "Need a small hole in the wall? Leave that to the mining laser wimps, I say!" 00428_ SL-BRD(g): "Would you like a rocket launcher? I know I would if I were you, so I'm going to lend you mine." 00428_ SL-BRD(g) slips back into the shadows. Map ----- +----------------------------------------------------+ | ???????????????????????????# #?????? | | ???????????????????????????# ! #?????? | | ???????????? ##??????# ##?????? | | ?????????????# ### #####??????? | | ??????????????# #??????????? | | ???????????????# #### ######?????? | | ???????????????# ????????## ## ##????? | | ??????????????????????????# ##???? | | ??????????????????????????# """ ##??? | | ??????????????????????????# """ #??? | | ??????????????????????????# """ #??? | | ??????????????????????????# % ##??? | | ??????????????????????????# * ###???? | | ??????????????????????????# ####?????? | | ??????????????????????????# ##????????? | | ??????????????????????????## ##????????? | | ???????????????????????????# #????????? | | ???????????????????????????# #????????? | | ???????????????????????????# #????????? | | ???????????????????????????## %##????????? | | ????????????????????????????# ##????????? | | ?????????????????????????####a ## #????? | | ?????????????????????????# aa #????? | | ?????????????????????????# #????? | | ??????????????????????#### ]### ##????? | | ??????????????????????# @ #?? ##?????? | | ?????????????????????# #? #??????? | | ????????????????????# #? #??????? | | ??????????????????? ##?# #??????? | | ?????????????????# ##???###??????? | | ????????????????# ## ###?????????????? | | ???????????????# #?###????????????????? | | ??????????????# ?????????????????????? | | ??????????????# ??????????????????????? | | ??????????????## ???????????????????????? | | ???????????????##????????????????????????? | | ?????????????????????????????????????????? | | ?????????????????????????????????????????? | | | | | | | | | | | | | | | | | | | | | | | | | +----------------------------------------------------+ Best States ------------- Heat Dissipation 28 Energy Generation 10 Energy Capacity 250 Matter Stores 300 Matter Capacity 300 Sight Range 18 Terrain Scan Density 10 Evasion (%) 63 Item Schematics ----------------- None Robot Schematics ------------------ None Fabricated ------------ Nothing Alien Tech Used ----------------- None Achievements -------------- None Challenges ------------ None Game ------ Seed IntegritySmallPrototype Manual? 0 Play Time 00:09:29 Cumulative 79.3 hours Start 2022.04.14 @ 23:45:53 End 2022.04.14 @ 23:51:59 Sessions 1 Manual Loads 0 Difficulty Rogue Special Mode None Game No. 95 Rogue 95 Adventurer 0 Explorer 0 Win Type - Total 1 Types 1/0/0/0/0/0/0/0/0 Lore% 48 Gallery% 53 Achievement% 39 Wizard Run 0 Options --------- ASCII 1 Keyboard 1 Movement Numpad Keybinds 0 Fullscreen 1 Font 18/X11 Map View 76x50 Tactical HUD 1 Map Filters NONE Filters NONE Steam 1 RUN: 4428d93c-71e5-4374-892d-583b45ebfff8